fUSD/lending_fUSD_20251215
["ID","MTS","AMOUNT","RATE_DAILY","PERIOD"]
[398519425,1765779038938,-200.0,0.00016973,2]
[398519426,1765779038948,-258.42619392,0.00016973,2]
[398519427,1765779038958,-500.0,0.00016973,2]
[398519428,1765779038968,-529.0,0.00016973,2]
[398519429,1765779038977,-198.95339524,0.00016973,2]
[398519430,1765779038987,-500.0,0.00016973,2]
[398519431,1765779038996,-500.0,0.00016973,2]
[398519432,1765779039006,-150.0,0.00016973,2]
[398519433,1765779039015,-168.0,0.00016977,2]
[398519434,1765779039025,-500.0,0.00016986,2]
[398519435,1765779039035,-1019.52,0.00016986,2]
[398519436,1765779039045,-53360.95,0.00016986,2]
[398519437,1765779039054,-2040.55,0.0001699,2]
[398519438,1765779039063,-2040.55,0.0001699,2]
[398519439,1765779039073,-2040.55,0.0001699,2]
[398519440,1765779039082,-2040.55,0.0001699,2]
[398519441,1765779039091,-2040.55,0.0001699,2]
[398519442,1765779039100,-151.0,0.00016993,2]
[398519443,1765779039112,-152.0,0.00016994,2]
[398519444,1765779039122,-152.0,0.00016995,2]
[398519445,1765779039132,-154.0,0.00016995,2]
[398519446,1765779039142,-154.0,0.00016995,2]
[398519447,1765779039151,-154.0,0.00016995,2]
[398519448,1765779039161,-209.3648007,0.00016995,2]
[398519449,1765779039171,-153.0,0.00016995,2]
[398519450,1765779039180,-154.0,0.00016995,2]
[398519451,1765779039190,-152.0,0.00016995,2]
[398519452,1765779039199,-151.0,0.00016997,2]
[398519453,1765779039208,-250.0,0.00016998,2]
[398519454,1765779039218,-500.0,0.00016998,2]
[398519455,1765779039227,-200.0,0.00016999,2]
[398519456,1765779039237,-150.0,0.00016999,2]
[398519457,1765779039247,-152.0,0.00016999,2]
[398519458,1765779039256,-150.23,0.00016999,2]
[398519459,1765779039267,-184.079,0.00016999,2]
[398519460,1765779039276,-150.0,0.00016999,2]
[398519461,1765779039285,-151.676,0.00016999,2]
[398519462,1765779039295,-150.318,0.00016999,2]
[398519463,1765779039305,-206.581,0.00016999,2]
[398519464,1765779039315,-163.174,0.00016999,2]
[398519465,1765779039324,-273.368,0.00016999,2]
[398519466,1765779039333,-150.0,0.00016999,2]
[398519467,1765779039343,-152.096,0.00016999,2]
[398519468,1765779039352,-151.0,0.00016999,2]
[398519469,1765779039361,-611.0,0.00016999,2]
[398519470,1765779039371,-1607.0,0.00016999,2]
[398519471,1765779039381,-3451.0,0.00016999,2]
[398519472,1765779039390,-1328.104,0.00016999,2]
[398519473,1765779039400,-2000.0,0.00016999,2]
[398519474,1765779039409,-2000.0,0.00016999,2]
[398519475,1765779039419,-2000.0,0.00016999,2]
[398519476,1765779039428,-2000.0,0.00016999,2]
[398519477,1765779039438,-2000.0,0.00016999,2]
[398519478,1765779039451,-300.0,0.00016999,2]
[398519479,1765779039460,-12141.70225778,0.00016999,2]
[398519480,1765779039469,-500.0,0.00016999,2]
[398519481,1765779039480,-461.75151474,0.00016999,2]
[398519482,1765779039490,-500.0,0.00016999,2]
[398519483,1765779039500,-500.0,0.00016999,2]
[398519484,1765779039510,-1019.52,0.00016999,2]
[398519485,1765779039519,-1019.52,0.00016999,2]
[398519486,1765779039529,-1019.52,0.00016999,2]
[398519487,1765779039539,-1019.52,0.00016999,2]
[398519488,1765779039549,-1019.52,0.00016999,2]
[398519489,1765779039558,-1019.52,0.00016999,2]
[398519490,1765779039567,-1019.52,0.00016999,2]
[398519491,1765779039576,-1019.52,0.00016999,2]
[398519492,1765779039586,-1019.52,0.00016999,2]
[398519493,1765779039595,-1019.52,0.00016999,2]
[398519494,1765779039604,-1019.52,0.00016999,2]
[398519495,1765779039614,-1019.52,0.00016999,2]
[398519496,1765779039623,-1019.52,0.00016999,2]
[398519497,1765779039633,-1019.52,0.00016999,2]
[398519498,1765779039642,-1019.52,0.00016999,2]
[398519499,1765779039651,-1019.52,0.00016999,2]
[398519500,1765779039660,-1019.52,0.00016999,2]
[398519501,1765779039669,-1019.52,0.00016999,2]
[398519502,1765779039679,-1019.52,0.00016999,2]
[398519503,1765779039690,-1019.52,0.00016999,2]
[398519504,1765779039699,-1019.52,0.00016999,2]
[398519505,1765779039708,-300.0,0.00016999,2]
[398519506,1765779039717,-150.0,0.00017,2]
[398519507,1765779039727,-197774.80747568,0.00017,2]
[398519508,1765779039740,-4000.0,0.00017,2]
[398519509,1765779039780,-19346.11953031,0.00017,2]
[398519510,1765779039791,-20960.59918484,0.00017,2]
[398519511,1765779039802,-3730.39045448,0.00017,2]
[398519512,1765779039813,-1563.61745328,0.00017,2]
[398519513,1765779039825,-696.74,0.00017,2]
[398519514,1765779039836,-933.77562354,0.00017,2]
[398519515,1765779039857,-1966.54436356,0.00017,2]
[398519516,1765779040125,-405.28705655,0.00016986,2]
[398519517,1765779040137,-90.89894345,0.00016986,2]
[398519518,1765779040146,-1000.0,0.00016986,2]
[398519519,1765779040155,-2245.72446508,0.00017,2]
[398519520,1765779040167,-463.67418489,0.00017,2]
[398519521,1765779040178,-4688274.66318412,0.00017,2]
[398519522,1765779040189,-60701.80358013,0.00017,2]
[398519523,1765779040201,-481.57727047,0.00017,2]
[398519524,1765779040212,-429.59999994,0.00017,2]
[398519525,1765779040223,-788.50317115,0.00017,2]
[398519526,1765779040261,-1690.66002,0.00017,2]
[398519527,1765779040272,-918.085566,0.00017,2]
[398519529,1765779044997,-2426.0,0.0001687,2]
[398519530,1765779045007,-16141.30510276,0.00017,2]
[398519531,1765779045019,-4481.67,0.00017,2]
[398519532,1765779045886,-1810.78,0.00017,2]
[398519533,1765779045946,-7485.93849539,0.00017,2]
[398519534,1765779046004,-154137.18884746,0.00017,2]
[398519535,1765779046062,-2000.0,0.00017,2]
[398519543,1765779114562,1000.0,0.0001486,2]
[398519545,1765779228393,3196.29,0.000157,2]
[398519546,1765779228432,1803.71,0.000157,2]
[398519547,1765779239379,2000.0,0.000157,2]
[398519548,1765779278267,450.0,0.000157,2]
[398519559,1765779486746,234.29,0.0001559,2]
[398519572,1765779682858,10000.0,0.00022,30]
[398519573,1765779721114,10000.0,0.00022,30]
[398519577,1765779774606,10000.0,0.00022,30]
[398519578,1765779848644,150.0,0.00015641,2]
[398519579,1765779908838,150.0,0.00015288,2]
[398519580,1765779908926,150.0,0.00015288,2]
[398519581,1765779908978,150.0,0.00015288,2]
[398519582,1765779913508,150.0,0.00015288,2]
[398519583,1765779914295,150.0,0.00015288,2]
[398519584,1765779914642,150.0,0.00015288,2]
[398519585,1765779930193,150.0,0.00015288,2]
[398519589,1765779966835,2467.12,0.00015643,2]
[398519594,1765780023841,1517.64,0.000153,2]
[398519595,1765780023875,999.0,0.00015656,3]
[398519596,1765780025611,1679.50067424,0.00015,2]
[398519598,1765780112867,2268.25300756,0.0001421,7]
[398519602,1765780166163,166.66,0.00014815,2]
[398519603,1765780166555,166.66,0.00015127,2]
[398519604,1765780166764,166.66,0.00015439,2]
[398519605,1765780219558,1083.255323,0.00015672,2]
[398519621,1765780232066,-166.66,0.00015751,2]
[398519622,1765780232076,-166.66,0.00016063,2]
[398519623,1765780232086,-250.0,0.00016208,2]
[398519624,1765780232095,-283.94202952,0.000163,2]
[398519625,1765780232105,-16310.495,0.000163,2]
[398519626,1765780232120,-837.13412801,0.000163,2]
[398519627,1765780232159,-887.52956503,0.000163,2]
[398519628,1765780232174,-453.95773948,0.000163,2]
[398519629,1765780232185,-349.17285286,0.000163,2]
[398519630,1765780232196,-436.60011272,0.000163,2]
[398519631,1765780232207,-709.39189094,0.000163,2]
[398519632,1765780232221,-479.58345571,0.000163,2]
[398519633,1765780232232,-434.57723662,0.000163,2]
[398519634,1765780232273,-19255.97986215,0.000163,2]
[398519635,1765780232282,-166.66,0.00016375,2]
[398519637,1765780232296,-2450.57732154,0.00016387,2]
[398519638,1765780232305,-2131.47499035,0.00016387,2]
[398519639,1765780232315,-26491.04665406,0.00016387,2]
[398519640,1765780232326,-6004.28321796,0.00016387,2]
[398519673,1765780240299,-423.81024343,0.00016387,2]
[398519674,1765780240314,-466.42928443,0.00016387,2]
[398519675,1765780240352,-1330.09807998,0.00016387,2]
[398519676,1765780240363,-9339.18982014,0.00016387,2]
[398519677,1765780240372,-225.67,0.00016438,2]
[398519678,1765780240381,-2450.57732147,0.00016444,2]
[398519679,1765780240390,-2131.47499027,0.00016444,2]
[398519680,1765780240399,-234.29,0.00016456,2]
[398519681,1765780240407,-300.0,0.00016474,2]
[398519682,1765780240416,-1502.0,0.00016474,2]
[398519683,1765780240425,-1000.0,0.00016477,2]
[398519684,1765780240435,-1000.0,0.00016477,2]
[398519685,1765780240444,-1000.0,0.00016477,2]
[398519686,1765780240453,-574.12855637,0.00016477,2]
[398519687,1765780240462,-151.0,0.00016477,2]
[398519688,1765780240471,-500.0,0.00016484,2]
[398519689,1765780240482,-239.08571001,0.00016484,2]
[398519690,1765780240491,-500.0,0.00016484,2]
[398519691,1765780240499,-355.35862915,0.00016484,2]
[398519692,1765780240508,-500.0,0.00016484,2]
[398519693,1765780240517,-500.0,0.00016484,2]
[398519694,1765780240526,-500.0,0.00016484,2]
[398519695,1765780240535,-500.0,0.00016484,2]
[398519696,1765780240544,-500.0,0.00016484,2]
[398519697,1765780240554,-500.0,0.00016484,2]
[398519698,1765780240563,-500.0,0.00016484,2]
[398519699,1765780240573,-500.0,0.00016484,2]
[398519700,1765780240583,-255.62862099,0.00016484,2]
[398519701,1765780240592,-499.99999999,0.00016484,2]
[398519702,1765780240601,-500.0,0.00016486,2]
[398519703,1765780240610,-500.0,0.00016486,2]
[398519704,1765780240619,-743.4,0.00016486,2]
[398519705,1765780240628,-743.4,0.00016486,2]
[398519706,1765780240638,-500.0,0.00016486,2]
[398519707,1765780240648,-448.05691283,0.00016486,2]
[398519708,1765780240657,-430.12561627,0.00016486,2]
[398519709,1765780240666,-1222.845,0.00016487,2]
[398519710,1765780240675,-600.0,0.00016487,2]
[398519711,1765780240684,-2450.57732147,0.00016501,2]
[398519712,1765780240693,-2131.47499027,0.00016501,2]
[398519713,1765780240702,-2450.57732147,0.00016558,2]
[398519714,1765780240711,-2131.47499027,0.00016558,2]
[398519715,1765780240720,-500.0,0.00016588,2]
[398519716,1765780240731,-500.0,0.00016588,2]
[398519717,1765780240740,-500.0,0.00016588,2]
[398519718,1765780240750,-500.0,0.00016588,2]
[398519719,1765780240759,-517.59,0.00016588,2]
[398519720,1765780240768,-2450.57732147,0.00016615,2]
[398519721,1765780240777,-652.21622993,0.00016615,2]
[398519722,1765780240789,-1479.25876034,0.00016615,2]
[398519723,1765780240798,-168.0,0.00016643,2]
[398519724,1765780240807,-503.0,0.00016658,2]
[398519725,1765780240816,-1246.87955017,0.0001666,2]
[398519726,1765780240826,-2450.57732147,0.00016672,2]
[398519727,1765780240835,-2131.47499027,0.00016672,2]
[398519728,1765780240844,-452.36,0.00016674,2]
[398519729,1765780240853,-168.0,0.00016677,2]
[398519730,1765780240864,-1217.27,0.000167,2]
[398519731,1765780240873,-150.0,0.00016724,2]
[398519732,1765780240883,-500.0,0.00016724,2]
[398519733,1765780240892,-150.0,0.00016724,2]
[398519734,1765780240902,-500.0,0.00016724,2]
[398519735,1765780240911,-500.0,0.00016724,2]
[398519736,1765780240920,-150.0,0.00016724,2]
[398519737,1765780240929,-500.0,0.00016724,2]
[398519738,1765780240938,-150.0,0.00016724,2]
[398519739,1765780240947,-1125.0,0.00016724,2]
[398519740,1765780240956,-500.0,0.00016724,2]
[398519741,1765780240965,-150.0,0.00016724,2]
[398519742,1765780240975,-1703.71119273,0.00016729,2]
[398519743,1765780240986,-746.86612874,0.00016729,2]
[398519744,1765780240995,-2131.47499027,0.00016729,2]
[398519745,1765780241005,-6654.83154736,0.00016758,2]
[398519746,1765780241016,-564.0886184,0.00016758,2]
[398519747,1765780241028,-7396.46225131,0.00016758,2]
[398519748,1765780241048,-4454.07068411,0.00016758,2]
[398519749,1765780241059,-666.0,0.00016758,2]
[398519750,1765780241071,-2159.12662638,0.00016758,2]
[398519751,1765780241082,-1396.78893979,0.00016758,2]
[398519752,1765780241093,-3240.35295883,0.00016758,2]
[398519753,1765780241105,-3856.49634004,0.00016758,2]
[398519754,1765780241114,-2450.57732147,0.00016786,2]
[398519755,1765780241125,-2131.47499027,0.00016786,2]
[398519756,1765780241134,-986.24369952,0.00016788,2]
[398519757,1765780241144,-960.38,0.000168,2]
[398519758,1765780241154,-218.53996823,0.00016818,2]
[398519759,1765780241163,-2694.28392,0.0001683,2]
[398519760,1765780241173,-302.49900544,0.0001683,2]
[398519761,1765780241183,-2500.0,0.0001683,2]
[398519762,1765780241193,-2450.57732147,0.00016843,2]
[398519763,1765780241204,-465.24754031,0.00016843,2]
[398519764,1765780241219,-543.57890316,0.00016843,2]
[398519765,1765780241239,-260.25,0.00016843,2]
[398519766,1765780241251,-862.3985468,0.00016843,2]
[398519767,1765780241261,-500.0,0.00016861,2]
[398519768,1765780241272,-500.0,0.00016861,2]
[398519769,1765780241282,-500.0,0.00016861,2]
[398519770,1765780241296,-200.0,0.00016861,2]
[398519771,1765780241317,-500.0,0.00016861,2]
[398519772,1765780241327,-1125.0,0.00016861,2]
[398519773,1765780241337,-500.0,0.00016861,2]
[398519774,1765780241347,-200.0,0.00016864,2]
[398519775,1765780241357,-2426.0,0.00016866,2]
[398519776,1765780241367,-168.0,0.0001687,2]
[398519777,1765780241377,-710.70922574,0.000169,2]
[398519778,1765780241389,-1425.68396704,0.000169,2]
[398519779,1765780241401,-1407.34,0.000169,2]
[398519780,1765780241410,-2391.82364812,0.000169,2]
[398519781,1765780241420,-2450.57732147,0.000169,2]
[398519782,1765780241430,-450.48233821,0.000169,2]
[398519783,1765780241439,-1006.0,0.000169,2]
[398519784,1765780241449,-2131.47499027,0.000169,2]
[398519785,1765780241458,-743.4,0.00016921,2]
[398519786,1765780241468,-9999.99,0.00016922,2]
[398519787,1765780241477,-2412.14309442,0.00016922,2]
[398519788,1765780241489,-1552.16690558,0.00016922,2]
[398519789,1765780241498,-1336.00507329,0.00016922,2]
[398519790,1765780241509,-4652.03492671,0.00016922,2]
[398519791,1765780241518,-9999.99,0.00016922,2]
[398519792,1765780241528,-150.99,0.00016922,2]
[398519793,1765780241538,-403.1,0.00016922,2]
[398519794,1765780241547,-481.25235646,0.00016924,2]
[398519795,1765780241557,-403.1,0.00016929,2]
[398519796,1765780241566,-403.1,0.00016936,2]
[398519797,1765780241575,-403.1,0.00016943,2]
[398519798,1765780241584,-153.81187727,0.00016947,2]
[398519799,1765780241593,-403.1,0.0001695,2]
[398519800,1765780241603,-403.1,0.00016957,2]
[398519801,1765780241613,-900.0,0.00016965,2]
[398519802,1765780241622,-403.1,0.00016965,2]
[398519803,1765780241636,-403.1,0.00016972,2]
[398519804,1765780241646,-500.0,0.00016973,2]
[398519805,1765780241656,-500.0,0.00016973,2]
[398519806,1765780241665,-500.0,0.00016973,2]
[398519807,1765780241675,-500.0,0.00016973,2]
[398519808,1765780241684,-500.0,0.00016973,2]
[398519809,1765780241694,-500.0,0.00016973,2]
[398519810,1765780241703,-500.0,0.00016973,2]
[398519811,1765780241712,-500.0,0.00016973,2]
[398519812,1765780241721,-500.0,0.00016973,2]
[398519813,1765780241731,-500.0,0.00016973,2]
[398519814,1765780241741,-500.0,0.00016973,2]
[398519815,1765780241751,-403.1,0.00016979,2]
[398519816,1765780241760,-577.07,0.00016986,2]
[398519817,1765780241769,-403.1,0.00016986,2]
[398519818,1765780241779,-150.0,0.00016986,2]
[398519819,1765780241788,-150.0,0.00016986,2]
[398519820,1765780241797,-241.0,0.00016986,2]
[398519821,1765780241806,-502.52329594,0.0001699,2]
[398519822,1765780241815,-502.52329594,0.0001699,2]
[398519823,1765780241825,-502.52329594,0.0001699,2]
[398519824,1765780241835,-168.0,0.00016993,2]
[398519825,1765780241844,-403.1,0.00016993,2]
[398519826,1765780241853,-151.0,0.00016997,2]
[398519827,1765780241863,-500.0,0.00016998,2]
[398519828,1765780241872,-500.0,0.00016998,2]
[398519829,1765780241881,-500.0,0.00016998,2]
[398519830,1765780241890,-500.0,0.00016998,2]
[398519831,1765780241899,-1125.0,0.00016998,2]
[398519832,1765780241909,-500.0,0.00016998,2]
[398519833,1765780241918,-81.47866566,0.00016999,2]
[398519834,1765780241930,-467.8772089,0.00016999,2]
[398519835,1765780241941,-92.64412544,0.00016999,2]
[398519836,1765780241952,-1261.0,0.00016999,2]
[398519837,1765780241961,-911.0,0.00016999,2]
[398519838,1765780241970,-934.84505294,0.00016999,2]
[398519839,1765780242849,-261.15494706,0.00016999,2]
[398519840,1765780242858,-1607.0,0.00016999,2]
[398519841,1765780242875,-3482.71505294,0.00016999,2]
[398519842,1765780242887,-75.34694706,0.00016999,2]
[398519843,1765780242899,-300.0,0.00016999,2]
[398519844,1765780242908,-419.80872019,0.00016999,2]
[398519845,1765780242960,-269.52924955,0.00016999,2]
[398519846,1765780242971,-895.51203026,0.00016999,2]
[398519847,1765780242980,-2000.0,0.00016999,2]
[398519848,1765780242990,-37.53003244,0.00016999,2]
[398519849,1765780243004,-262.46996756,0.00016999,2]
[398519850,1765780243015,-200.83834721,0.00016999,2]
[398519851,1765780243025,-70.69168523,0.00016999,2]
[398519852,1765780243037,-653.76080498,0.00016999,2]
[398519853,1765780243062,-18.94750979,0.00016999,2]
[398519855,1765780243074,-743.4,0.00016999,2]
[398519856,1765780243083,-743.4,0.00016999,2]
[398519857,1765780243093,-743.4,0.00016999,2]
[398519858,1765780243103,-743.4,0.00016999,2]
[398519859,1765780243113,-743.4,0.00016999,2]
[398519860,1765780243123,-743.4,0.00016999,2]
[398519861,1765780243132,-400.86446061,0.00016999,2]
[398519862,1765780243144,-305.55524937,0.00016999,2]
[398519863,1765780243155,-36.98029002,0.00016999,2]
[398519864,1765780243164,-743.4,0.00016999,2]
[398519865,1765780243173,-743.4,0.00016999,2]
[398519866,1765780243182,-743.4,0.00016999,2]
[398519867,1765780243191,-743.4,0.00016999,2]
[398519868,1765780243200,-743.4,0.00016999,2]
[398519869,1765780243209,-743.4,0.00016999,2]
[398519870,1765780243218,-743.4,0.00016999,2]
[398519871,1765780243227,-743.4,0.00016999,2]
[398519872,1765780243237,-743.4,0.00016999,2]
[398519873,1765780243247,-743.4,0.00016999,2]
[398519874,1765780243256,-743.4,0.00016999,2]
[398519875,1765780243265,-743.4,0.00016999,2]
[398519876,1765780243275,-743.44,0.00016999,2]
[398519877,1765780243285,-300.0,0.00016999,2]
[398519878,1765780243300,-3908.0,0.00017,2]
[398519879,1765780243310,-150.0,0.00017,2]
[398519880,1765780243320,-6982.23770255,0.00017,2]
[398519881,1765780243331,-4348.12435315,0.00017,2]
[398519882,1765780243344,-217469.79584286,0.00017,2]
[398519883,1765780243353,-829385.65510275,0.00017,2]
[398519884,1765780243363,-2633.21979259,0.00017,2]
[398519885,1765780243373,-1854.21275698,0.00017,2]
[398519886,1765780243382,-126625.75950404,0.00017,2]
[398519887,1765780243391,-171.6085101,0.00017,2]
[398519888,1765780243401,-1381.99102216,0.00017,4]
[398519889,1765780243410,-3224.64571839,0.00017,4]
[398519890,1765780243420,-3505527.77493425,0.00017,2]
[398519891,1765780243432,-273144.53107181,0.00017,2]
[398519892,1765780243444,-166020.98301214,0.00017,2]
[398519893,1765780243455,-1001.90024601,0.00017,2]
[398519894,1765780243466,-1500.0,0.00017,2]
[398519895,1765780243478,-889.26257382,0.00017,2]
[398519896,1765780243489,-570.39513047,0.00017,2]
[398519897,1765780243511,-2280.9972858,0.00017,2]
[398519898,1765780243522,-1956.161805,0.00017,2]
[398519899,1765780243571,-2734201.89366186,0.00017,2]
[398519900,1765780244007,-911.29083245,0.00016866,2]
[398519901,1765780246054,-412.70916755,0.00016866,2]
[398519902,1765780246066,-197.43693246,0.00017,2]
[398519903,1765780246139,-3395.91129934,0.00017,2]
[398519932,1765780558509,-464.84359628,0.0001619,2]
[398520010,1765780843259,-165.51576475,0.00015799,2]
[398520014,1765780904084,-194.31109753,0.00015799,2]
[398520015,1765780906142,-188.74629666,0.00015799,2]
[398520028,1765781061217,994.1,0.00013699,2]
[398520032,1765781097113,-219.67789992,0.0001573,2]
[398520036,1765781106936,187.956336,0.00015651,2]
[398520041,1765781132981,150.0,0.00015288,2]
[398520042,1765781133076,150.0,0.00015288,2]
[398520043,1765781133136,150.0,0.00015288,2]
[398520046,1765781143151,150.0,0.00015288,2]
[398520047,1765781143195,150.0,0.00015288,2]
[398520048,1765781143243,150.0,0.00015288,2]
[398520049,1765781143280,245.86986302,0.00015288,2]
[398520050,1765781143432,-97.61271095,0.0001573,2]
[398520051,1765781144568,150.0,0.00015288,2]
[398520052,1765781155503,151.9773931,0.00015288,2]
[398520053,1765781156075,150.0,0.00015288,2]
[398520054,1765781156134,150.0,0.00015288,2]
[398520108,1765781432286,-282.0,0.00015799,2]
[398520109,1765781432295,-1196.51684106,0.00015799,2]
[398520110,1765781432304,-1500.0,0.00015813,2]
[398520111,1765781432313,-250.0,0.00015861,2]
[398520112,1765781432323,-978.276,0.00016058,2]
[398520113,1765781432332,-1645.72706949,0.00016338,2]
[398520114,1765781432341,-300.0,0.00016374,2]
[398520115,1765781432351,-300.0,0.00016374,2]
[398520116,1765781432360,-1200.0,0.00016374,2]
[398520117,1765781432370,-620.65318016,0.00016376,2]
[398520118,1765781432379,-200.0,0.00016376,2]
[398520119,1765781432388,-152.60863937,0.00016376,2]
[398520120,1765781432397,-1502.0,0.00016376,2]
[398520121,1765781432408,-574.12855637,0.00016376,2]
[398520122,1765781432417,-200.0,0.00016376,2]
[398520123,1765781432427,-1000.0,0.00016376,2]
[398520124,1765781432436,-1000.0,0.00016376,2]
[398520125,1765781432445,-1000.0,0.00016376,2]
[398520126,1765781432454,-500.0,0.00016376,2]
[398520127,1765781432463,-200.0,0.00016376,2]
[398520128,1765781432472,-151.0,0.00016376,2]
[398520129,1765781432482,-151.0,0.00016376,2]
[398520130,1765781432491,-151.0,0.00016376,2]
[398520131,1765781432501,-300.0,0.00016376,2]
[398520132,1765781432511,-151.0,0.00016376,2]
[398520133,1765781432520,-9121.92186832,0.00016376,2]
[398520134,1765781432529,-151.0,0.00016376,2]
[398520135,1765781432538,-151.0,0.00016376,2]
[398520136,1765781432547,-151.0,0.00016376,2]
[398520137,1765781432556,-151.0,0.00016376,2]
[398520138,1765781432566,-162.38933071,0.00016376,2]
[398520139,1765781432575,-620.0,0.00016376,2]
[398520140,1765781432584,-1645.72706947,0.000164,2]
[398520141,1765781432593,-500.0,0.00016438,2]
[398520142,1765781432603,-500.0,0.00016438,2]
[398520143,1765781432613,-642.31300209,0.00016438,2]
[398520144,1765781432622,-500.0,0.00016438,2]
[398520145,1765781432631,-500.0,0.00016438,2]
[398520146,1765781432641,-500.0,0.00016438,2]
[398520147,1765781432650,-500.0,0.00016438,2]
[398520148,1765781432660,-500.0,0.00016438,2]
[398520149,1765781432670,-500.0,0.00016438,2]
[398520150,1765781432679,-500.0,0.00016438,2]
[398520151,1765781432688,-500.0,0.00016438,2]
[398520152,1765781432697,-500.0,0.00016438,2]
[398520153,1765781432711,-500.0,0.00016438,2]
[398520154,1765781432720,-500.0,0.00016438,2]
[398520155,1765781432730,-500.0,0.00016438,2]
[398520156,1765781432739,-500.0,0.00016438,2]
[398520157,1765781432748,-500.0,0.00016438,2]
[398520158,1765781432757,-500.0,0.00016438,2]
[398520159,1765781432770,-500.0,0.00016438,2]
[398520160,1765781432784,-6837.47,0.00016438,2]
[398520161,1765781432793,-600.0,0.00016438,2]
[398520162,1765781432804,-168.0,0.00016453,2]
[398520163,1765781432813,-1645.72706947,0.00016463,2]
[398520164,1765781433270,-500.0,0.00016486,2]
[398520165,1765781433285,-500.0,0.00016486,2]
[398520166,1765781433295,-500.0,0.00016486,2]
[398520167,1765781433304,-535.18,0.00016486,2]
[398520168,1765781433314,-500.0,0.00016486,2]
[398520169,1765781433335,-500.0,0.00016486,2]
[398520170,1765781433347,-502.30169263,0.00016486,2]
[398520171,1765781433357,-704.07,0.000165,2]
[398520172,1765781433366,-1645.72706947,0.00016525,2]
[398520173,1765781433377,-1645.72706947,0.00016588,2]
[398520174,1765781433386,-168.0,0.00016602,2]
[398520175,1765781433396,-216.39,0.00016629,2]
[398520176,1765781433406,-467.86,0.00016644,2]
[398520177,1765781433416,-1645.72706947,0.0001665,2]
[398520178,1765781433425,-831.25303345,0.0001666,2]
[398520179,1765781433435,-961.24,0.000167,2]
[398520180,1765781433445,-1645.72706947,0.00016713,2]
[398520181,1765781433456,-150.0,0.00016724,2]
[398520182,1765781433466,-500.0,0.00016724,2]
[398520183,1765781433475,-984.0,0.00016724,2]
[398520184,1765781433485,-150.0,0.00016724,2]
[398520185,1765781433495,-242.93900505,0.00016724,2]
[398520186,1765781433504,-150.0,0.00016724,2]
[398520187,1765781433514,-500.0,0.00016724,2]
[398520188,1765781433523,-1645.72706947,0.00016775,2]
[398520189,1765781433532,-1645.72706947,0.00016838,2]
[398520190,1765781433542,-168.0,0.00016846,2]
[398520191,1765781433551,-500.0,0.00016861,2]
[398520192,1765781433561,-984.0,0.00016861,2]
[398520193,1765781433570,-150.0,0.00016861,2]
[398520194,1765781433580,-200.0,0.00016861,2]
[398520195,1765781433590,-633.81117024,0.00016861,2]
[398520196,1765781433600,-461.60322757,0.000169,3]
[398520197,1765781433611,-1645.72706947,0.000169,2]
[398520198,1765781433620,-1502.0,0.00016924,2]
[398520199,1765781433631,-595.37131296,0.00016924,2]
[398520200,1765781433640,-481.25235646,0.00016926,2]
[398520201,1765781433649,-534.98060133,0.00016973,2]
[398520202,1765781433660,-500.0,0.00016973,2]
[398520203,1765781433669,-500.0,0.00016973,2]